bitfinex-derivatives/quotes_BTCF0:USTF0_20251011
["timestamp","ask_amount","ask_price","bid_price","bid_amount"]
[1760184268181,0.88263198,112310.0,112300.0,0.80749786]
[1760184268577,0.88363198,112310.0,112300.0,0.80749786]
[1760184271484,0.88363198,112310.0,112300.0,0.39558]
[1760184271683,0.88363198,112310.0,112300.0,0.80749786]
[1760184273889,0.88363198,112310.0,112300.0,0.78542786]
[1760184274089,0.88263198,112310.0,112300.0,0.78542786]
[1760184274387,0.88263198,112310.0,112300.0,0.37351]
[1760184274785,0.88263198,112310.0,112290.0,0.78542786]
[1760184274786,0.0889759,112300.0,112290.0,0.78542786]
[1760184274984,0.11069161,112300.0,112290.0,0.78542786]
[1760184277988,0.11269161,112300.0,112290.0,0.78542786]
[1760184278892,0.11269161,112300.0,112290.0,0.42462786]
[1760184279087,0.11269161,112300.0,112290.0,0.44669786]
[1760184279294,0.47349161,112300.0,112290.0,0.44669786]
[1760184279691,0.47349161,112300.0,112290.0,0.42462786]
[1760184280087,0.47349161,112300.0,112280.0,0.01271]
[1760184280293,0.0889918,112280.0,112270.0,0.7944007]
[1760184280495,0.0889918,112280.0,112270.0,0.8175407]
[1760184280496,0.11070751,112280.0,112270.0,0.8175407]
[1760184281398,0.11070751,112280.0,112270.0,0.4567407]
[1760184282493,0.47150751,112280.0,112270.0,0.4567407]
[1760184282690,0.47150751,112280.0,112270.0,0.4336007]
[1760184284392,0.47150751,112280.0,112270.0,0.00885284]
[1760184284588,0.0889997,112270.0,112260.0,0.03706]
[1760184284795,0.11071541,112270.0,112260.0,0.03706]
[1760184286297,0.11071541,112270.0,112260.0,0.04606385]
[1760184286597,0.47151541,112270.0,112260.0,0.04606385]
[1760184288098,0.51941188,112270.0,112260.0,0.04606385]
[1760184297202,0.54107126,112270.0,112260.0,0.04606385]
[1760184301202,0.54107126,112270.0,112260.0,0.02292385]
[1760184301407,0.54107126,112270.0,112260.0,0.00900385]
[1760184301705,0.0890076,112260.0,112250.0,0.37385]
[1760184301894,0.11066698,112260.0,112250.0,0.37385]
[1760184303105,0.11066698,112260.0,112250.0,0.38262576]
[1760184303299,0.47146698,112260.0,112250.0,0.02182576]
[1760184304202,0.47146698,112260.0,112250.0,0.00877576]
[1760184304501,0.47146698,112260.0,112250.0,0.01399]
[1760184304901,0.47146698,112260.0,112250.0,0.03544]
[1760184306304,0.02165938,112260.0,112250.0,0.4852555]
[1760184306500,0.18031174,112270.0,112260.0,0.1244476]
[1760184306807,0.15861678,112270.0,112260.0,0.74706479]
[1760184307006,0.18030874,112270.0,112260.0,0.74706479]
[1760184308313,0.18030874,112270.0,112260.0,0.39624]
[1760184310309,0.18030874,112270.0,112260.0,0.4852476]
[1760184312412,0.18030874,112270.0,112260.0,0.39624]
[1760184314713,0.18030874,112270.0,112260.0,0.74706479]
[1760184317320,0.18030874,112270.0,112260.0,0.83607239]
[1760184317516,0.18030874,112270.0,112260.0,0.74706479]
[1760184321620,0.18030874,112270.0,112260.0,0.38626479]
[1760184325224,0.54110874,112270.0,112260.0,0.03544]
[1760184325525,0.54110874,112270.0,112260.0,0.38626479]
[1760184326531,0.18030874,112270.0,112260.0,0.74706479]
[1760184327533,0.18030874,112270.0,112260.0,0.38626479]
[1760184329831,0.09130414,112270.0,112260.0,0.83607239]
[1760184330137,0.06961218,112270.0,112260.0,1.23607239]
[1760184330334,0.0889925,112280.0,112270.0,0.1242497]
[1760184330536,0.0889872,112290.0,112280.0,0.03525]
[1760184330837,0.11073027,112290.0,112280.0,0.83586659]
[1760184331042,0.0889838,112290.0,112280.0,0.83586659]
[1760184332239,0.0889801,112300.0,112290.0,0.0139]
[1760184332537,0.11070582,112300.0,112290.0,0.39605]
[1760184333234,0.0889801,112300.0,112290.0,0.39605]
[1760184333939,0.11192211,112300.0,112290.0,0.39605]
[1760184334336,0.0909801,112300.0,112290.0,0.39605]
[1760184334734,0.0909801,112300.0,112290.0,0.03525]
[1760184337936,0.4517801,112300.0,112290.0,0.03525]
[1760184338435,0.47370867,112300.0,112290.0,0.03525]
[1760184339042,0.47370939,112300.0,112290.0,0.03525]
[1760184339936,0.11290939,112300.0,112290.0,0.03525]
[1760184340342,0.0909801,112300.0,112290.0,0.03525]
[1760184342943,0.0909801,112300.0,112290.0,0.1242338]
[1760184343141,0.0909801,112300.0,112290.0,0.03525]
[1760184344044,0.0909801,112300.0,112290.0,0.1242338]
[1760184344243,0.0909801,112300.0,112290.0,0.4850338]
[1760184344446,0.0909801,112300.0,112290.0,0.39605]
[1760184344642,0.0909801,112300.0,112290.0,0.03525]
[1760184347242,0.0909801,112300.0,112290.0,0.4850338]
[1760184348444,0.002,112300.0,112290.0,0.4850338]
[1760184348854,0.0909759,112300.0,112290.0,0.4850338]
[1760184349054,0.002,112300.0,112290.0,0.4850338]
[1760184349450,0.002,112300.0,112290.0,0.89680541]
[1760184353955,0.0899759,112300.0,112290.0,0.89680541]
[1760184354657,0.0889759,112300.0,112290.0,0.89680541]
[1760184354959,0.85992097,112310.0,112300.0,0.03557]
[1760184355257,0.11095978,112310.0,112300.0,0.39637]
[1760184355660,0.18177836,112310.0,112300.0,0.39637]
[1760184356455,0.0889759,112300.0,112290.0,0.3747]
[1760184356660,0.11096298,112300.0,112290.0,0.0139]
[1760184356860,0.11096298,112300.0,112290.0,0.03627]
[1760184357056,0.47176298,112300.0,112290.0,0.03627]
[1760184357255,0.11096298,112300.0,112290.0,0.03627]
[1760184357752,0.47176298,112300.0,112290.0,0.03627]
[1760184358560,0.47276298,112300.0,112290.0,0.03627]
[1760184359360,0.47376298,112300.0,112290.0,0.03627]
[1760184359866,0.47376298,112300.0,112290.0,0.44804161]
[1760184361554,0.47376298,112300.0,112290.0,0.03627]
[1760184362963,0.47376298,112300.0,112290.0,0.44804161]
[1760184363462,0.47376298,112300.0,112290.0,0.03627]
[1760184365357,0.11296298,112300.0,112290.0,0.1252538]
[1760184365762,0.11296298,112300.0,112290.0,0.4860538]
[1760184366364,0.11296298,112300.0,112290.0,0.1252538]
[1760184366564,0.11296298,112300.0,112290.0,0.4860538]
[1760184369071,0.02398708,112300.0,112290.0,0.4860538]
[1760184369272,0.11296298,112300.0,112290.0,0.4860538]
[1760184369664,0.02398708,112300.0,112290.0,0.4860538]
[1760184370775,0.07081858,112310.0,112300.0,0.1245459]
[1760184370970,0.4497403,112350.0,112330.0,0.0132]
[1760184371177,1.23998525,112350.0,112340.0,0.03557]
[1760184371370,0.4497403,112350.0,112340.0,0.03557]
[1760184371973,0.4744603,112350.0,112330.0,0.51391961]
[1760184372172,0.4744603,112350.0,112340.0,0.02237]
[1760184372173,0.1136603,112350.0,112340.0,0.02237]
[1760184372379,0.4744603,112350.0,112340.0,0.02237]
[1760184372878,0.4784603,112350.0,112340.0,0.02237]
[1760184374580,0.54973031,112350.0,112340.0,0.02237]
[1760184374781,1.27146556,112350.0,112340.0,0.02237]
[1760184374980,1.27146556,112350.0,112340.0,0.03117696]
[1760184375682,1.27146556,112350.0,112340.0,0.04437696]
[1760184377278,1.27146556,112350.0,112340.0,0.03117696]
[1760184377472,0.91066556,112350.0,112340.0,0.03117696]
[1760184378582,1.27146556,112350.0,112340.0,0.03117696]
[1760184380177,1.27146556,112350.0,112340.0,0.00880696]
[1760184380377,0.03021,112330.0,112320.0,0.3608]
[1760184380587,0.1107022,112330.0,112320.0,0.39637]
[1760184381087,0.1107022,112330.0,112320.0,0.40533956]
[1760184381782,0.1127022,112330.0,112320.0,0.40533956]
[1760184382783,0.1127022,112330.0,112320.0,0.00896956]
[1760184382983,0.1107101,112320.0,112310.0,0.39637]
[1760184383179,0.1107101,112320.0,112310.0,0.40521811]
[1760184384384,0.1117101,112320.0,112310.0,0.40521811]
[1760184384582,0.02375,112320.0,112310.0,1.30595772]
[1760184384883,0.1127101,112320.0,112310.0,0.90595772]
[1760184385378,0.1127101,112320.0,112310.0,0.81698972]
[1760184386386,0.1127101,112320.0,112310.0,0.90595772]
[1760184387688,0.02375,112320.0,112310.0,1.30595772]
[1760184387888,0.002,112320.0,112310.0,1.30595772]
[1760184394092,0.02403,112320.0,112310.0,0.89418611]
[1760184394293,0.02403,112320.0,112310.0,1.30595772]
[1760184394992,0.02403,112320.0,112310.0,0.89418611]
[1760184395292,0.02403,112320.0,112310.0,1.30595772]
[1760184395492,0.1129901,112320.0,112310.0,1.30595772]
[1760184395993,0.002,112320.0,112310.0,1.30595772]
[1760184397496,0.02403,112320.0,112310.0,1.30595772]
[1760184401098,0.02303,112320.0,112310.0,1.30595772]
[1760184402192,0.02203,112320.0,112310.0,1.30595772]
[1760184402403,0.02203,112320.0,112310.0,0.90695772]
[1760184403102,0.02203,112320.0,112310.0,0.90595772]
[1760184405303,0.1109901,112320.0,112310.0,0.90595772]
[1760184405502,0.13282866,112320.0,112310.0,0.90595772]
[1760184406693,0.13282866,112320.0,112310.0,0.81698972]
[1760184408800,0.13282866,112320.0,112310.0,0.90595772]
[1760184410392,0.13282866,112320.0,112310.0,0.45618972]
[1760184410598,0.14128866,112320.0,112310.0,0.45618972]
[1760184411398,0.13282866,112320.0,112310.0,0.04441811]
[1760184411697,0.13282866,112320.0,112310.0,0.13338611]
[1760184412805,0.13282866,112320.0,112310.0,0.04441811]
[1760184413805,0.13282866,112320.0,112310.0,0.00884811]
[1760184414009,0.111898,112310.0,112300.0,0.484215]
[1760184414309,0.13373656,112310.0,112300.0,0.484215]
[1760184415410,0.13373656,112310.0,112300.0,0.40406337]
[1760184416304,0.21491959,112310.0,112300.0,0.36962337]
[1760184416506,0.21491959,112310.0,112300.0,0.39086337]
[1760184416803,0.61491959,112310.0,112300.0,0.36962337]
[1760184417007,0.97571959,112310.0,112300.0,0.00882337]
[1760184417207,0.0889759,112300.0,112290.0,0.3608]
[1760184417405,0.14220446,112300.0,112290.0,0.36950737]
[1760184418208,0.54220446,112300.0,112290.0,0.36950737]
[1760184429207,0.54220446,112300.0,112290.0,0.00870737]
[1760184429410,0.1231038,112290.0,112280.0,0.3608]
[1760184429611,0.1231038,112290.0,112270.0,0.36090698]
[1760184429612,0.1119218,112280.0,112270.0,0.36090698]
[1760184430814,0.1109218,112280.0,112270.0,0.36090698]
[1760184431715,0.1109218,112280.0,112270.0,0.38314698]
[1760184431920,0.1109218,112280.0,112270.0,0.39191916]
[1760184432217,0.1109218,112280.0,112270.0,0.37067916]
[1760184433820,0.82420871,112280.0,112270.0,0.37067916]
[1760184434816,1.24601587,112280.0,112270.0,0.37067916]
[1760184435123,1.24601587,112280.0,112270.0,0.00987916]
[1760184438221,1.24601587,112280.0,112260.0,0.3608]
[1760184438222,0.1119297,112270.0,112260.0,0.39477]
[1760184438423,0.13373686,112270.0,112260.0,0.39477]
[1760184439020,0.13380474,112270.0,112260.0,0.39477]
[1760184439223,0.14499474,112270.0,112260.0,0.36992022]
[1760184439824,0.00846,112260.0,112240.0,0.3608]
[1760184440123,0.1221355,112250.0,112240.0,0.3608]
[1760184440319,0.1119535,112240.0,112230.0,0.39477]
[1760184440625,0.1119614,112230.0,112220.0,0.39486957]
[1760184441123,0.1099614,112230.0,112220.0,0.39486957]
[1760184441426,0.1099614,112230.0,112220.0,0.4040169]
[1760184441727,0.1099614,112230.0,112220.0,0.4930562]
[1760184442722,0.1099614,112230.0,112220.0,0.0432169]
[1760184442922,0.1099614,112230.0,112220.0,0.4930562]
[1760184443122,0.1099614,112230.0,112220.0,0.4950562]
[1760184443326,0.18207687,112230.0,112220.0,0.4950562]
[1760184445022,0.18207687,112230.0,112220.0,0.1342562]
[1760184445219,0.54287687,112230.0,112220.0,0.0452169]
[1760184448426,0.54287687,112230.0,112220.0,0.1342562]
[1760184449031,0.54287687,112230.0,112220.0,0.0452169]
[1760184449231,0.18207687,112230.0,112220.0,0.0452169]
[1760184449530,0.54287687,112230.0,112220.0,0.0452169]
[1760184449931,0.54287687,112230.0,112220.0,0.1342562]
[1760184450130,0.54287687,112230.0,112220.0,0.0452169]
[1760184452337,0.97720052,112230.0,112220.0,0.0112469]
[1760184453536,0.97720052,112230.0,112220.0,0.0102469]
[1760184458840,1.16240052,112230.0,112220.0,0.0102469]
[1760184462042,0.1119552,112200.0,112190.0,0.03487]
[1760184462243,0.1119552,112200.0,112180.0,0.03598]
[1760184462244,0.1119632,112190.0,112180.0,0.03598]
[1760184462445,0.49480994,112190.0,112180.0,0.03598]
[1760184462642,0.1119711,112180.0,112170.0,0.03598]
[1760184462845,0.111979,112170.0,112160.0,0.03481]
[1760184463045,0.49291476,112170.0,112160.0,0.03481]
[1760184463246,0.49290961,112170.0,112160.0,0.03481]
[1760184463449,0.49290961,112170.0,112160.0,0.04364049]
[1760184464548,0.56321802,112170.0,112160.0,0.04364049]
[1760184464749,0.56321802,112170.0,112160.0,0.04464049]
[1760184465451,0.54117643,112170.0,112160.0,0.04464049]
[1760184465651,0.5632031,112170.0,112160.0,0.04464049]
[1760184466140,0.5716631,112170.0,112160.0,0.00983049]
[1760184466544,0.9716631,112170.0,112160.0,0.00983049]
[1760184467751,0.1119949,112150.0,112140.0,0.03481]
[1760184468050,0.1119949,112150.0,112140.0,0.04368421]
[1760184468352,0.4727949,112150.0,112140.0,0.00887421]
[1760184468544,1.6120029,112140.0,112130.0,0.03491574]
[1760184468744,1.9728029,112140.0,112130.0,0.03491574]
[1760184469143,1.9819929,112140.0,112130.0,0.00010574]
[1760184470049,1.9819929,112140.0,112130.0,0.03095621]
[1760184471044,1.9728029,112140.0,112130.0,0.04362621]
[1760184471245,1.9728029,112140.0,112130.0,0.03095621]
[1760184471449,1.9728029,112140.0,112130.0,0.04362621]
[1760184474651,1.9728029,112140.0,112130.0,0.03095621]
[1760184474847,1.9728029,112140.0,112130.0,0.04360621]
[1760184475246,1.9728029,112140.0,112130.0,0.44360621]
[1760184475452,1.6120029,112140.0,112130.0,0.44360621]
[1760184475753,1.9728029,112140.0,112130.0,0.44360621]
[1760184477050,1.9728029,112140.0,112130.0,0.04360621]
[1760184478348,1.9728029,112140.0,112130.0,0.00881621]
[1760184478853,1.9728029,112140.0,112130.0,0.03025621]
[1760184479052,1.9728029,112140.0,112130.0,0.04290621]
[1760184479851,1.9728029,112140.0,112130.0,0.00881621]
[1760184480050,1.99475524,112140.0,112130.0,0.00881621]
[1760184481855,2.57995524,112140.0,112130.0,0.00881621]
[1760184482258,2.17995524,112140.0,112130.0,0.03025621]
[1760184482758,2.17995524,112140.0,112130.0,0.00881621]
[1760184485660,2.39475524,112140.0,112130.0,0.00881621]
[1760184486062,0.1105567,112110.0,112100.0,0.39489]
[1760184486257,0.4713567,112110.0,112100.0,0.03409]
[1760184487154,0.4713567,112110.0,112090.0,0.39489]
[1760184487155,1.6105647,112100.0,112090.0,0.39489]
[1760184488155,1.6105647,112100.0,112090.0,0.79489]
[1760184488360,1.6105647,112100.0,112090.0,0.4039201]
[1760184489264,1.6105647,112100.0,112090.0,0.8039201]
[1760184490055,1.68046782,112100.0,112090.0,0.4431201]
[1760184491060,1.70249862,112100.0,112090.0,0.0431201]
[1760184491655,1.70249862,112100.0,112090.0,0.0304701]
[1760184491862,2.06331873,112100.0,112090.0,0.0090301]
[1760184492157,0.1105726,112090.0,112080.0,0.39489]
[1760184492356,0.1105726,112090.0,112080.0,0.03409]
[1760184492553,0.1105726,112090.0,112080.0,0.04284812]
[1760184493253,0.13264557,112090.0,112080.0,0.04284812]
[1760184493451,0.1105726,112090.0,112080.0,0.04284812]
[1760184494261,0.13264881,112090.0,112080.0,0.04284812]
[1760184495765,0.90562881,112090.0,112080.0,0.00875812]
[1760184495965,0.1105806,112080.0,112070.0,0.03416138]
[1760184496160,0.49345681,112080.0,112070.0,0.03416138]
[1760184496466,0.89345681,112080.0,112070.0,7.138e-05]
[1760184497562,0.89345681,112080.0,112070.0,0.00908635]
[1760184498163,0.0891665,112060.0,112050.0,0.03409]
[1760184498363,0.04350621,112060.0,112050.0,0.04313802]
[1760184498564,0.20314286,112060.0,112050.0,0.45618841]
[1760184499265,0.20323511,112060.0,112050.0,0.45618841]
[1760184499862,0.20323511,112060.0,112050.0,0.54536281]
[1760184500165,0.20323511,112060.0,112050.0,0.04313802]
[1760184500366,0.1811589,112060.0,112050.0,0.04313802]
[1760184501072,0.20319123,112060.0,112050.0,0.04313802]
[1760184501267,0.20319091,112060.0,112050.0,0.04313802]
[1760184504470,0.1811589,112060.0,112050.0,0.04313802]
[1760184506276,0.1811589,112060.0,112050.0,0.13231242]
[1760184507375,0.1811589,112060.0,112050.0,0.54536281]
[1760184507572,0.1811589,112060.0,112050.0,0.13231242]
[1760184507772,0.1811589,112060.0,112050.0,0.04313802]
[1760184508778,0.1811589,112060.0,112050.0,0.13231242]
[1760184509368,0.1597289,112060.0,112050.0,0.13231242]
[1760184509675,0.1815589,112060.0,112050.0,0.13231242]
[1760184511177,0.1815589,112060.0,112050.0,0.04313802]
[1760184512675,0.20359198,112060.0,112050.0,0.04313802]
[1760184513876,0.11442548,112060.0,112050.0,0.13231242]
[1760184514076,0.0705624,112060.0,112050.0,1.30616281]
[1760184516177,0.4499467,112090.0,112080.0,0.03606]
[1760184516371,0.49383359,112090.0,112080.0,0.03606]
[1760184517081,0.4939125,112090.0,112080.0,0.03606]
[1760184517382,0.0439658,112090.0,112080.0,0.4860106]
[1760184517579,0.1331084,112090.0,112080.0,0.4860106]
[1760184518083,0.1331084,112090.0,112080.0,0.39686]
[1760184519774,0.1112784,112090.0,112080.0,0.39686]
[1760184519979,0.0448658,112090.0,112080.0,0.89906099]
[1760184520176,0.0448658,112090.0,112080.0,0.53826099]
[1760184520373,0.0448658,112090.0,112080.0,0.80991039]
[1760184520577,0.1340084,112090.0,112080.0,0.80991039]
[1760184521485,0.1340084,112090.0,112080.0,0.39686]
[1760184521778,0.1118806,112080.0,112070.0,0.44771039]
[1760184521983,0.40558689,112080.0,112070.0,0.44771039]
[1760184522583,0.49473749,112080.0,112070.0,0.44771039]
[1760184523379,0.49473749,112080.0,112070.0,0.03466]
[1760184523878,0.04478689,112080.0,112070.0,0.1238185]
[1760184524083,0.04478689,112080.0,112070.0,0.4846185]
[1760184524278,0.04478689,112080.0,112070.0,0.39546]
[1760184526179,0.1118806,112080.0,112070.0,0.39546]
[1760184526580,0.13404904,112080.0,112070.0,0.03466]
[1760184526875,0.1118885,112070.0,112060.0,0.44771039]
[1760184527081,0.49485694,112070.0,112060.0,0.03466]
[1760184527580,0.49485694,112070.0,112050.0,0.40419802]
[1760184527581,0.1118965,112060.0,112050.0,0.40419802]
[1760184528182,0.02273,112060.0,112050.0,0.40419802]
[1760184528484,0.02273,112060.0,112050.0,0.49337242]
[1760184529286,0.02273,112070.0,112060.0,0.1239665]
[1760184529483,0.02217422,112070.0,112060.0,0.89781689]
[1760184529788,0.02280891,112090.0,112080.0,0.1239506]
[1760184530088,0.04497959,112090.0,112080.0,0.1239506]
[1760184530282,0.13412219,112090.0,112080.0,0.0348]
[1760184530987,0.13412219,112090.0,112080.0,0.1239506]
[1760184532090,0.13412219,112090.0,112080.0,0.0348]
[1760184532290,1.6118806,112080.0,112070.0,0.3956]
[1760184532483,1.63405128,112080.0,112070.0,0.4847585]
[1760184532688,1.54490068,112080.0,112070.0,0.4847585]
[1760184533080,1.63405128,112080.0,112070.0,0.4847585]
[1760184534089,1.99485128,112080.0,112070.0,0.0348]
[1760184534681,0.0891585,112070.0,112060.0,0.3739]
[1760184534889,0.13295343,112070.0,112060.0,0.39701]
[1760184537991,0.49375343,112070.0,112060.0,0.03621]
[1760184539792,0.49375343,112070.0,112060.0,0.03635]
[1760184539992,0.49375343,112070.0,112060.0,0.02311]
[1760184540791,0.1107865,112060.0,112050.0,0.38249802]
[1760184540992,0.1107865,112060.0,112050.0,0.40560802]
[1760184541691,0.49378238,112060.0,112050.0,0.04480802]
[1760184541897,0.4715865,112060.0,112050.0,0.04480802]
[1760184542598,0.54238475,112060.0,112050.0,0.04480802]
[1760184544695,0.54238475,112060.0,112050.0,0.13398242]
[1760184544899,0.18158475,112060.0,112050.0,0.49478242]
[1760184546096,0.09241825,112060.0,112050.0,0.49478242]
[1760184546296,0.15996475,112060.0,112050.0,0.49478242]
[1760184546692,0.18158475,112060.0,112050.0,0.49478242]
[1760184546898,0.15996475,112060.0,112050.0,0.49478242]
[1760184547596,0.07079825,112060.0,112050.0,1.24678305]
[1760184547792,0.1107719,112080.0,112070.0,0.01324]
[1760184548096,0.1107719,112080.0,112070.0,0.03635]
[1760184548493,0.50594195,112080.0,112070.0,0.02311]
[1760184548694,0.1107785,112070.0,112060.0,0.03635]
[1760184548900,0.50222855,112070.0,112050.0,0.11086902]
[1760184549301,0.50222855,112070.0,112060.0,0.02311]
[1760184550104,0.50222855,112070.0,112060.0,0.03635]
[1760184550800,0.49376855,112070.0,112060.0,0.03635]
[1760184551101,0.49376855,112070.0,112060.0,0.1255165]
[1760184551303,0.04381005,112070.0,112060.0,0.8863165]
[1760184551497,0.02162,112070.0,112060.0,0.8863165]
[1760184551895,0.1107714,112080.0,112070.0,0.03635]
[1760184552099,0.13296736,112080.0,112070.0,0.03635]
[1760184552604,0.49376736,112080.0,112070.0,0.03635]
[1760184555098,0.50222736,112080.0,112070.0,0.03635]
[1760184555303,0.50222736,112080.0,112060.0,0.01324]
[1760184555304,0.1107785,112070.0,112060.0,0.03635]
[1760184555508,0.49377446,112070.0,112060.0,0.03635]
[1760184555809,0.4715785,112070.0,112060.0,0.03635]
[1760184556011,0.49378331,112070.0,112060.0,0.03635]
[1760184556704,0.4715785,112070.0,112060.0,0.03635]
[1760184556905,0.4715785,112070.0,112060.0,0.1255165]
[1760184557414,0.4715785,112070.0,112060.0,0.03635]
[1760184557808,0.0891665,112060.0,112050.0,0.02169802]
[1760184558015,0.1107865,112060.0,112050.0,0.13398242]
[1760184558419,0.1107865,112060.0,112050.0,0.04480802]
[1760184558716,0.1107865,112060.0,112050.0,0.13398242]
[1760184558917,0.1107865,112060.0,112050.0,0.04480802]
[1760184559319,0.1199765,112060.0,112050.0,0.03215802]
[1760184560220,0.1107865,112060.0,112050.0,0.04539802]
[1760184561622,0.18123525,112060.0,112050.0,0.04539802]
[1760184561817,0.54203525,112060.0,112050.0,0.03215802]
[1760184562427,0.54203525,112060.0,112050.0,0.04539802]
[1760184563315,0.56429182,112060.0,112050.0,0.04539802]
[1760184566128,0.54203525,112060.0,112050.0,0.04539802]
[1760184566726,0.07044875,112060.0,112050.0,0.89537242]
[1760184567026,0.472775,112080.0,112070.0,0.03599]
[1760184567225,0.49503029,112080.0,112070.0,0.03599]
[1760184569727,0.49503029,112080.0,112070.0,0.1251485]
[1760184569922,0.49502589,112080.0,112070.0,0.1251485]
[1760184570727,0.4727706,112080.0,112070.0,0.1251485]
[1760184571025,0.02289891,112090.0,112080.0,0.0891506]
[1760184571229,0.13429326,112090.0,112080.0,0.1251406]
[1760184571423,0.11204151,112090.0,112080.0,0.1251406]
[1760184571827,0.13428504,112090.0,112080.0,0.03599]
[1760184572528,0.02232244,112090.0,112080.0,0.1251406]
[1760184572724,0.13428504,112090.0,112080.0,0.5251406]
[1760184573328,0.13428504,112090.0,112080.0,0.8859406]
[1760184573626,7.891e-05,112090.0,112080.0,0.8859406]
[1760184573826,0.02289891,112090.0,112080.0,0.8859406]
[1760184574425,0.04512984,112090.0,112080.0,0.8859406]
[1760184575029,0.04512984,112090.0,112080.0,0.5251406]
[1760184575524,0.04512984,112090.0,112080.0,0.8859406]
[1760184576823,0.04512984,112090.0,112080.0,0.43599]
[1760184578028,0.04512984,112090.0,112080.0,0.5251401]
[1760184578932,0.04512984,112090.0,112080.0,0.5251318]
[1760184579128,7.891e-05,112090.0,112080.0,1.23793243]
[1760184579432,0.06990312,112100.0,112090.0,0.1251238]
[1760184579433,0.02282,112100.0,112090.0,0.1251238]
[1760184579629,0.09481936,112100.0,112090.0,0.4859238]
[1760184579822,0.02282,112100.0,112090.0,0.4859238]
[1760184580335,0.02288716,112100.0,112090.0,0.4859238]
[1760184580531,0.11201296,112100.0,112090.0,0.1251238]
[1760184581231,0.1107238,112090.0,112080.0,0.4854017]
[1760184581734,0.1107317,112080.0,112070.0,0.39626]
[1760184582236,0.1107317,112080.0,112070.0,0.4854097]
[1760184583231,0.4715317,112080.0,112070.0,0.03546]
[1760184584535,0.1107317,112080.0,112070.0,0.03546]
[1760184584836,0.4715317,112080.0,112070.0,0.03546]
[1760184586334,0.0891497,112070.0,112060.0,0.03546]
[1760184586533,0.1107397,112070.0,112060.0,0.03546]
[1760184590338,0.1107476,112060.0,112050.0,0.40573802]
[1760184592738,0.1833932,112060.0,112050.0,0.40573802]
[1760184596744,0.1925832,112060.0,112050.0,0.39188802]
[1760184597333,0.1925832,112060.0,112050.0,0.03108802]
[1760184597334,0.5533832,112060.0,112050.0,0.03108802]
[1760184597534,0.5533832,112060.0,112050.0,0.04457802]
[1760184598845,0.5441932,112060.0,112050.0,0.04457802]
[1760184599446,0.5441932,112060.0,112050.0,0.03108802]
[1760184601446,0.1833932,112060.0,112050.0,0.40537802]
[1760184601643,0.1833932,112060.0,112050.0,0.80537802]
[1760184601841,0.0726456,112060.0,112050.0,0.89454362]
[1760184602041,0.0891545,112070.0,112060.0,0.01349]
[1760184602346,0.1102362,112080.0,112070.0,0.03536]
[1760184602936,0.1102362,112080.0,112070.0,0.39616]
[1760184603840,0.4710362,112080.0,112070.0,0.03536]
[1760184604036,0.1102397,112070.0,112060.0,0.44886553]
[1760184604245,0.4710397,112070.0,112060.0,0.44886553]
[1760184604442,0.1102397,112070.0,112060.0,0.80966553]
[1760184604640,0.06777925,112070.0,112060.0,0.80966553]
[1760184604946,0.0891446,112080.0,112070.0,0.03536]
[1760184605142,0.0891446,112080.0,112070.0,0.39616]
[1760184605340,0.0891446,112080.0,112070.0,0.79616]
[1760184606242,0.1102346,112080.0,112070.0,0.79616]
[1760184607148,0.1102284,112090.0,112080.0,0.03536]
[1760184607342,0.10241567,112090.0,112080.0,0.80966553]
[1760184607548,0.0802237,112090.0,112080.0,0.80966553]
[1760184607846,0.0942037,112090.0,112080.0,0.80966553]
[1760184608047,0.0802237,112090.0,112080.0,0.80966553]
[1760184608446,0.0942037,112090.0,112080.0,0.80966553]
[1760184608743,0.0942037,112090.0,112080.0,0.39616]
[1760184609148,0.0942037,112090.0,112080.0,0.37429]
[1760184609649,0.0942037,112090.0,112080.0,0.39616]
[1760184617255,0.4942037,112090.0,112080.0,0.03536]
[1760184617552,0.1031217,112080.0,112070.0,0.39616]
[1760184617749,0.1031217,112080.0,112060.0,0.39616]
[1760184617750,0.1031297,112070.0,112060.0,0.39616]
[1760184620055,0.0891466,112080.0,112070.0,0.03536]
[1760184620244,0.0523376,112080.0,112070.0,0.80966553]
[1760184620444,0.43257985,112100.0,112080.0,0.03536]
[1760184620445,0.0771756,112090.0,112080.0,0.03536]
[1760184620752,0.0911556,112090.0,112080.0,0.39616]
[1760184621357,0.0911556,112090.0,112080.0,0.80966553]
[1760184621953,0.0771756,112090.0,112080.0,0.80966553]
[1760184622751,0.08575985,112100.0,112090.0,0.03536]
[1760184622958,0.17488565,112100.0,112090.0,0.03536]
[1760184623457,0.17488565,112100.0,112090.0,0.44886553]
[1760184624653,0.17488565,112100.0,112090.0,0.03536]
[1760184624859,0.17488565,112100.0,112090.0,0.44886553]
[1760184627755,0.17488565,112100.0,112090.0,0.03536]
[1760184630357,0.57488565,112100.0,112090.0,0.03536]
[1760184631061,0.57488565,112100.0,112090.0,0.01349]
[1760184631262,0.59708918,112100.0,112090.0,0.01349]
[1760184631456,0.59708918,112100.0,112090.0,0.03538]
[1760184633762,0.95788918,112100.0,112090.0,0.03538]
[1760184634752,0.93568565,112100.0,112090.0,0.03538]
[1760184634958,0.95792361,112100.0,112090.0,0.03538]
[1760184637565,0.59712361,112100.0,112090.0,0.03538]
[1760184638667,0.95792361,112100.0,112090.0,0.03538]
[1760184639265,0.93568565,112100.0,112090.0,0.03538]
[1760184639563,0.57488565,112100.0,112090.0,0.03538]
[1760184641068,0.93568565,112100.0,112090.0,0.03538]
[1760184641468,0.57488565,112100.0,112090.0,0.03538]
[1760184642469,0.17488565,112100.0,112090.0,0.03538]
[1760184642769,0.88204574,112100.0,112090.0,0.03538]
[1760184644062,0.90427537,112100.0,112080.0,0.78779553]
[1760184644267,0.1031137,112090.0,112080.0,0.80899553]
[1760184645173,0.1031137,112090.0,112080.0,0.39549]
[1760184645374,0.1031137,112090.0,112080.0,0.03469]
[1760184646375,0.1031137,112090.0,112080.0,0.39549]
[1760184650279,0.07171269,112100.0,112090.0,0.1233237]
[1760184650579,0.0891179,112110.0,112100.0,0.03419]
[1760184650772,0.0891179,112110.0,112100.0,0.39499]
[1760184650976,0.0961179,112110.0,112100.0,0.39499]
[1760184651177,0.0891179,112110.0,112100.0,0.4841158]
[1760184651375,7.241e-05,112110.0,112100.0,0.4841158]
[1760184651578,0.09619021,112110.0,112100.0,0.39499]
[1760184652488,0.09619021,112110.0,112100.0,0.4841158]
[1760184652689,0.16580208,112110.0,112100.0,0.39499]
[1760184654389,0.16580208,112110.0,112100.0,0.03419]
[1760184654582,0.18842802,112110.0,112100.0,0.03419]
[1760184657188,0.16580208,112110.0,112100.0,0.03419]
[1760184658792,0.18849652,112110.0,112100.0,0.03419]
[1760184659487,0.54929652,112110.0,112100.0,0.03419]
[1760184660191,1.26687275,112110.0,112100.0,0.03419]
[1760184660692,0.90607275,112110.0,112100.0,0.39499]